Workbook

Sheet Sheet2
H3: 130-132 Griffith Street Jersey City
L5: At Closing | O5: w $150k CapX | R5: w $300k CapX
I6: Unit # | J6: Unit Type | L6: Rent | M6: Notes | N6: No Renovations-Next Lease | O6: Rent | P6: Notes | R6: Rent | S6: Notes
I7: 130-1 | J7: 2 BR | L7: 1200 | M7: Sec 8M2M | N7: 1230 | O7: 2700 | P7: vacate + $20,000 CI | R7: 3100 | S7: vacate + $50,000 CI
I8: 130-2 | J8: 2 BR | L8: 1484 | M8: M2M | N8: 2100 | O8: 2700 | P8: vacate + $20,000 CI | R8: 3100 | S8: vacate + $50,000 CI
I9: 130-3 | J9: BR | L9: 2000 | M9: ex 9/26 | N9: 2080 | O9: 2700 | P9: vacate + $20,000 CI | R9: 3100 | S9: vacate + $50,000 CI
I10: 132-1 | J10: BR | L10: 2364 | M10: ex 10/26 | N10: 2455 | O10: 2700 | P10: vacate + $20,000 CI | R10: 3100 | S10: vacate + $50,000 CI
I11: 132-2 | J11: BR | L11: 2100 | M11: ex 7/26 | N11: 2180 | O11: 2700 | P11: vacate + $20,000 CI | R11: 3100 | S11: vacate + $50,000 CI
I12: 132-3 | J12: BR | L12: 2550 | M12: ex 9/26 | N12: 2650 | O12: 2700 | P12: vacate + $20,000 CI | R12: 3000 | S12: vacate + $50,000 CI
J13: Gross Monthly | L13: =SUM(L7:L12) -> 11698 | N13: =SUM(N7:N12) -> 12695 | O13: =SUM(O7:O12) -> 16200 | R13: =SUM(R7:R12) -> 18500
J14: Gross Annual | L14: =L13*12 -> 140376 | N14: 152340 | O14: =O13*12 -> 194400 | R14: =R13*12 -> 222000
H16: EXPENSES
L17: At Closing | O17: w $150k CapX | R17: w $300k CapX
L18: Ammount | M18: Notes | O18: Ammount | P18: Notes | R18: Ammount | S18: Notes
J19: Taxes | L19: 25500 | M19: Actual | N19: 25500 | O19: =L19 -> 25500 | P19: Actual | R19: =O19 -> 25500 | S19: Actual
J20: Insurance | L20: 6900 | M20: Approx | N20: 6900 | O20: 4800 | P20: Approx | R20: 3597 | S20: Approx
J21: Water & Sewer | L21: 3600 | M21: Approx | N21: 3600 | O21: 3600 | P21: Approx | R21: 3600 | S21: Approx
J22: PSEG | L22: 1000 | M22: Approx | N22: 1000 | O22: =L22 -> 1000 | P22: Approx | R22: 300 | S22: Approx
J23: Super | L23: 5000 | M23: Approx | N23: 5000 | O23: =L23 -> 5000 | P23: Approx | R23: =O23 -> 5000 | S23: Approx
J24: Vacancy | O24: =P24*O14 -> 5832 | P24: 0.03 | R24: =$R$14*S24 -> 6660 | S24: 0.03
J25: Maintenance | L25: 3000 | M25: 0.03 | N25: 3000 | O25: =P25*O14 -> 5832 | P25: 0.03 | R25: =$R$14*S25 -> 6660 | S25: 0.03
J26: Total Expenses | L26: =SUM(L19:L25) -> 45000 | N26: =SUM(N19:N25) -> 45000 | O26: =SUM(O19:O25) -> 51564 | R26: =SUM(R19:R25) -> 51317
L28: At Closing | O28: w $150k CapX | R28: w $300k CapX
J29: NOI | L29: =L14-L26 -> 95376 | N29: =N14-N26 -> 107340 | O29: =O14-O26 -> 142836 | R29: =R14-R26 -> 170683
H31: ANALYSIS
L32: At Closing | O32: w $150k CapX | R32: w $300k CapX
J33: Purchase Price | L33: 2175000
J34: Ca X | O34: 150000 | P34: Renovations | R34: 350000 | S34: Renovations
J35: Total | L35: =L33+L34 -> 2175000 | O35: =L35+O34 -> 2325000 | R35: =O35+R34 -> 2675000
J37: Cap Rate | L37: =L29/L35 -> 0.04385103448 | N37: 0.0493 | O37: =O29/O35 -> 0.06143483871 | R37: =R29/R35 -> 0.06380672897
J38: Notes | L38: 130 Units 1&2 are in the process of eviction
